bitfinex-derivatives/quotes_SOLF0:USTF0_20260210
["timestamp","ask_amount","ask_price","bid_price","bid_amount"]
[1770709103452,38.0782586,84.599,84.544,37.44656586]
[1770709103453,3.58118891,84.59,84.544,37.44656586]
[1770709103655,48.7275586,84.597,84.544,37.44656586]
[1770709104847,2.05738204,84.636,84.544,37.44656586]
[1770709104848,38.0782586,84.589,84.544,37.44656586]
[1770709105552,41.65944751,84.57,84.53,37.44656586]
[1770709108837,41.66153252,84.57,84.53,37.44656586]
[1770709110453,52.31433252,84.57,84.53,37.44656586]
[1770709111140,10.6515,84.58,84.53,41.02983978]
[1770709112046,14.23477392,84.58,84.53,41.02983978]
[1770709112448,14.23477392,84.58,84.53,51.68753978]
[1770709112654,3.58327392,84.58,84.531,37.44656586]
[1770709116354,38.0782586,84.579,84.53,10.6577]
[1770709116659,3.58327392,84.55,84.501,37.44656586]
[1770709117860,3.58327392,84.55,84.512,37.44656586]
[1770709121262,3.58327392,84.56,84.514,37.44656586]
[1770709121558,3.58327392,84.55,84.514,37.44656586]
[1770709123861,3.58327392,84.55,84.514,48.10626586]
[1770709124468,3.58327392,84.55,84.515,37.44656586]
[1770709125963,3.58327392,84.56,84.519,37.44656586]
[1770709127669,3.58327392,84.57,84.523,37.44656586]
[1770709131274,35.5,84.6,84.523,37.44656586]
[1770709131275,41.43644441,84.56,84.523,37.44656586]
[1770709131468,3.58327392,84.56,84.523,37.44656586]
[1770709133865,10.6535,84.564,84.523,37.44656586]
[1770709140582,3.58410161,84.56,84.512,39.64972768]
[1770709140787,37.85317049,84.566,84.512,39.64972768]
[1770709141791,37.85317049,84.566,84.521,39.64972768]
[1770709142483,3.58410161,84.56,84.521,39.64972768]
[1770709145984,3.58410161,84.56,84.524,39.64972768]
[1770709146180,37.85317049,84.566,84.524,39.64972768]
[1770709146483,37.85317049,84.577,84.524,39.64972768]
[1770709146681,37.85317049,84.577,84.531,39.64972768]
[1770709147077,3.58410161,84.58,84.531,39.64972768]
[1770709148686,3.58410161,84.58,84.542,39.64972768]
[1770709148996,41.4372721,84.6,84.542,39.64972768]
[1770709149788,41.4372721,84.6,84.551,39.64972768]
[1770709150686,41.4372721,84.6,84.553,39.64972768]
[1770709152687,41.4372721,84.6,84.556,39.64972768]
[1770709157491,41.4372721,84.6,84.558,39.64972768]
[1770709158181,41.4372721,84.61,84.565,39.64972768]
[1770709159588,41.4372721,84.61,84.576,10.6518]
[1770709159589,37.85317049,84.61,84.576,10.6518]
[1770709159790,40.92758152,84.619,84.577,38.80766242]
[1770709164491,3.58410161,84.61,84.577,38.80766242]
[1770709168297,40.92758152,84.599,84.564,49.46096242]
[1770709168498,44.51168313,84.59,84.564,10.6533]
[1770709169007,44.50945669,84.59,84.564,10.6533]
[1770709169708,3.58187517,84.59,84.564,10.6533]
[1770709173109,7.517e-05,84.59,84.564,10.6533]
[1770709173312,40.92758152,84.599,84.564,10.6533]
[1770709174510,40.92758152,84.599,84.56,38.80766242]
[1770709175513,3.58187517,84.59,84.56,38.80766242]
[1770709178321,40.92758152,84.599,84.566,38.80766242]
[1770709178622,3.58187517,84.6,84.566,38.80766242]
[1770709179321,44.50945669,84.6,84.566,38.80766242]
[1770709184129,44.50945669,84.6,84.567,10.653]
[1770709190535,40.92758152,84.6,84.567,10.653]
[1770709190826,44.50945669,84.6,84.567,10.653]
[1770709191827,40.92758152,84.6,84.567,10.653]
[1770709195827,40.92758152,84.6,84.55,3.58187517]
[1770709195828,44.50945669,84.6,84.558,10.6542]
[1770709196328,11.00581666,84.609,84.545,38.07777353]
[1770709196329,38.70947909,84.589,84.545,38.07777353]
[1770709196529,38.70947909,84.579,84.535,38.07777353]
[1770709197235,38.70947909,84.579,84.545,10.6558]
[1770709201438,3.58187517,84.57,84.545,10.6558]
[1770709203937,38.70947909,84.579,84.545,10.6558]
[1770709211639,3.58187517,84.57,84.545,10.6558]
[1770709213845,38.70947909,84.579,84.545,10.6558]
[1770709215946,38.70947909,84.589,84.552,38.07777353]
[1770709217544,38.70947909,84.589,84.545,10.6557]
[1770709218051,42.29135426,84.57,84.534,10.6572]
[1770709218349,42.29135426,84.57,84.535,38.07777353]
[1770709220152,42.29135426,84.57,84.537,37.08829167]
[1770709221148,38.70947909,84.57,84.537,37.08829167]
[1770709222653,42.29135426,84.57,84.537,37.08829167]
[1770709228857,42.29277418,84.57,84.537,37.08829167]
[1770709230550,40.02674038,84.581,84.54,37.42909258]
[1770709230754,165.4868,84.684,84.54,41.01238767]
[1770709230755,40.02674038,84.593,84.54,41.01238767]
[1770709231255,40.02674038,84.593,84.56,10.6539]
[1770709231454,40.02674038,84.606,84.561,37.42909258]
[1770709231646,21.2843,84.654,84.561,37.42909258]
[1770709231647,40.02674038,84.619,84.561,37.42909258]
[1770709231958,40.02674038,84.619,84.576,37.42909258]
[1770709232459,40.02674038,84.619,84.581,37.42909258]
[1770709232654,43.61003547,84.63,84.581,37.42909258]
[1770709232957,43.61003547,84.63,84.593,10.6497]
[1770709233351,43.61003547,84.63,84.594,37.42909258]
[1770709233352,40.02674038,84.63,84.594,37.42909258]
[1770709234156,40.02674038,84.63,84.596,37.42909258]
[1770709234463,40.02674038,84.639,84.596,37.42909258]
[1770709235254,40.02674038,84.619,84.574,37.42909258]
[1770709236763,40.02674038,84.619,84.58,48.08049258]
[1770709236964,40.02674038,84.609,84.561,37.42909258]
[1770709237261,43.61003547,84.59,84.561,10.6537]
[1770709237761,40.02674038,84.59,84.561,10.6537]
[1770709239069,40.02674038,84.59,84.517,14.64459369]
[1770709239070,40.02674038,84.579,84.541,37.42909258]
[1770709240763,40.02674038,84.579,84.543,10.656]
[1770709249865,40.02674038,84.579,84.541,37.42909258]
[1770709251373,40.02674038,84.579,84.502,21.3223]
[1770709251374,43.03326851,84.56,84.53,36.57418602]
[1770709255170,43.03411695,84.56,84.53,36.57418602]
[1770709257075,3.58414353,84.56,84.531,47.23178602]
[1770709257270,3.58414353,84.57,84.532,36.57418602]
[1770709257767,39.44997342,84.586,84.54,36.57418602]
[1770709258076,39.44997342,84.586,84.54,40.15832955]
[1770709258481,39.44997342,84.586,84.549,10.6553]
[1770709259067,39.44997342,84.586,84.54,40.15832955]
[1770709259273,39.44997342,84.586,84.556,10.6544]
[1770709260267,10.6481,84.607,84.559,10.654]
[1770709260268,39.44997342,84.606,84.559,10.654]
[1770709262680,39.44997342,84.606,84.566,10.6531]
[1770709267472,39.44997342,84.606,84.56,36.57418602]
[1770709268681,39.44997342,84.606,84.561,10.6537]
[1770709270182,39.44997342,84.606,84.568,10.6528]
[1770709272782,39.44997342,84.606,84.568,47.22698602]
[1770709273187,39.44997342,84.606,84.572,10.6524]
[1770709275486,39.44997342,84.606,84.551,36.57418602]
[1770709276294,39.44997342,84.606,84.56,3.58414353]
[1770709276688,39.44997342,84.606,84.571,10.6525]
[1770709278091,39.44997342,84.606,84.578,10.6516]
[1770709289716,3.58414353,84.59,84.525,36.80216146]
[1770709289919,8.0,84.623,84.531,36.80216146]
[1770709289920,38.47741568,84.579,84.531,36.80216146]
[1770709290615,38.47741568,84.579,84.541,36.80216146]
[1770709290819,38.47741568,84.579,84.551,10.655]
[1770709295425,38.47741568,84.579,84.542,10.6562]
[1770709299719,3.5821803,84.57,84.533,10.6573]
[1770709300022,38.47741568,84.569,84.533,10.6573]
[1770709300420,38.47741568,84.569,84.54,10.6564]
[1770709301220,38.47741568,84.569,84.532,10.6574]
[1770709301528,38.47741568,84.559,84.517,36.80216146]
[1770709302925,38.47741568,84.559,84.522,10.6587]
[1770709304124,35.5,84.581,84.496,36.80216146]
[1770709304125,38.47741568,84.539,84.496,36.80216146]
[1770709305227,35.5,84.555,84.511,36.80216146]
[1770709305228,3.5821803,84.55,84.511,36.80216146]
[1770709306022,38.47741568,84.549,84.512,10.66]
[1770709306329,38.47741568,84.549,84.512,47.46216146]
[1770709307030,38.47741568,84.549,84.513,36.80216146]
[1770709307230,38.47741568,84.549,84.512,10.66]
[1770709307430,3.5821803,84.54,84.512,10.66]
[1770709307925,38.47741568,84.549,84.512,10.66]
[1770709313131,38.47741568,84.549,84.511,38.65743916]
[1770709313434,3.5821803,84.54,84.511,38.65743916]
[1770709314025,36.12284206,84.539,84.491,38.65743916]
[1770709314433,3.5821803,84.54,84.491,38.65743916]
[1770709314735,3.5821803,84.54,84.508,38.65743916]
[1770709315331,39.70502236,84.54,84.508,38.65743916]
[1770709315534,39.70502236,84.53,84.499,10.6616]
[1770709319233,39.70502236,84.53,84.491,38.65743916]
[1770709319438,3.5821803,84.52,84.491,38.65743916]
[1770709319744,39.70502236,84.53,84.491,38.65743916]
[1770709320346,39.70502236,84.54,84.501,38.65743916]
[1770709321441,39.70502236,84.54,84.511,10.66]
[1770709321645,36.12284206,84.54,84.511,10.66]
[1770709322037,39.70502236,84.54,84.511,10.66]
[1770709323443,39.70502236,84.54,84.501,38.65743916]
[1770709323951,3.5821803,84.53,84.501,38.65743916]
[1770709324648,39.70502236,84.53,84.499,10.6616]
[1770709324845,3.5821803,84.52,84.499,10.6616]
[1770709325549,3.5821803,84.52,84.481,38.65743916]
[1770709325550,39.70502236,84.52,84.489,10.6629]
[1770709327650,36.12284206,84.52,84.489,10.6629]
[1770709327948,39.70502236,84.52,84.489,10.6629]
[1770709328149,3.5821803,84.53,84.497,38.65743916]
[1770709328952,39.70502236,84.53,84.497,38.65743916]
[1770709329155,39.70502236,84.53,84.486,38.65743916]
[1770709329356,3.5821803,84.52,84.486,38.65743916]
[1770709330050,39.70502236,84.53,84.486,38.65743916]
[1770709330756,39.70502236,84.53,84.496,10.6621]
[1770709338557,3.5821803,84.52,84.496,10.6621]
[1770709340767,39.70502236,84.53,84.496,10.6621]
[1770709350881,39.70502236,84.53,84.5,10.6616]
[1770709350882,39.71012554,84.53,84.5,10.6616]
[1770709351078,39.71012554,84.53,84.497,37.51331146]
[1770709351079,39.71012554,84.53,84.501,37.51331146]
[1770709351279,39.68872161,84.54,84.501,37.51331146]
[1770709352687,39.68872161,84.54,84.502,10.6613]
[1770709353186,3.58728348,84.53,84.502,10.6613]
[1770709356382,3.58728348,84.53,84.453,43.31816053]
[1770709356383,39.68872161,84.55,84.517,37.51331146]
[1770709356583,3.58728348,84.54,84.517,37.51331146]
[1770709356787,3.58728348,84.54,84.491,37.51331146]
[1770709357380,39.68872161,84.54,84.491,37.51331146]
[1770709357775,39.68872161,84.54,84.511,10.6602]
[1770709360982,35.53,84.566,84.502,37.51331146]
[1770709360983,39.68872161,84.53,84.502,37.51331146]
[1770709361183,39.68872161,84.53,84.498,10.6618]
[1770709361485,39.68872161,84.53,84.452,21.98336053]
[1770709361486,36.10143813,84.519,84.465,37.51331146]
[1770709361985,36.10143813,84.519,84.471,37.51331146]
[1770709362183,3.58728348,84.53,84.481,37.51331146]
[1770709362381,3.58728348,84.53,84.491,37.51331146]
[1770709362583,36.10143813,84.529,84.491,37.51331146]
[1770709366092,36.10143813,84.519,84.49,10.6628]
[1770709366283,36.10143813,84.519,84.481,10.664]
[1770709366486,36.10143813,84.519,84.482,37.51331146]
[1770709367090,36.10143813,84.519,84.483,48.17701146]
[1770709367790,36.10143813,84.519,84.484,37.51331146]
[1770709367986,36.10143813,84.519,84.488,37.51331146]
[1770709369486,36.10143813,84.529,84.491,37.51331146]
[1770709370789,36.10143813,84.529,84.493,46.38025069]
[1770709370990,36.10143813,84.529,84.494,35.71775069]
[1770709372793,36.10143813,84.529,84.496,10.6622]
[1770709375093,36.10143813,84.529,84.499,35.71775069]
[1770709375396,14.67941541,84.549,84.499,35.71775069]
[1770709375397,11.06954358,84.546,84.499,35.71775069]
[1770709375696,3.58676868,84.55,84.499,35.71775069]
[1770709375900,39.36189277,84.55,84.499,35.71775069]
[1770709376292,39.36189277,84.55,84.49,3.58676868]
[1770709376293,11.06954358,84.555,84.517,35.71775069]
[1770709376487,11.06954358,84.555,84.471,35.53]
[1770709376488,35.77512409,84.578,84.53,3.58676868]
[1770709376793,35.77512409,84.569,84.531,35.71775069]
[1770709377790,35.77512409,84.569,84.536,10.6571]
[1770709381593,35.77512409,84.569,84.52,3.58676868]
[1770709381594,3.58676868,84.58,84.544,35.71775069]
[1770709382796,3.58676868,84.58,84.551,10.6552]
[1770709382990,3.58676868,84.58,84.534,35.71775069]
[1770709382991,35.77512409,84.579,84.534,35.71775069]
[1770709383198,35.77512409,84.569,84.534,35.71775069]
[1770709383802,35.53,84.606,84.483,21.98336053]
[1770709383803,39.36189277,84.56,84.501,35.71775069]
[1770709383996,35.77512409,84.549,84.501,35.71775069]
[1770709384197,3.58676868,84.54,84.502,10.6613]
[1770709385107,35.77512409,84.539,84.502,10.6613]
[1770709390303,3.58676868,84.53,84.502,10.6613]
[1770709397808,35.77512409,84.539,84.508,35.71775069]
[1770709398202,3.58676868,84.53,84.508,35.71775069]
[1770709405511,35.77512409,84.539,84.508,35.71775069]
[1770709408510,3.58676868,84.53,84.508,35.71775069]
[1770709411017,3.58660578,84.53,84.508,35.71775069]
[1770709412829,3.58660578,84.54,84.508,35.71775069]
[1770709413032,38.55907397,84.54,84.508,35.71775069]
[1770709420026,3.58660578,84.54,84.509,36.61386103]
[1770709420234,3.58660578,84.56,84.511,36.61386103]
[1770709420629,3.58660578,84.56,84.516,36.61386103]
[1770709421538,34.97246819,84.564,84.52,36.61386103]
[1770709421939,3.58660578,84.57,84.52,36.61386103]
[1770709422141,3.58660578,84.57,84.52,40.20046681]
[1770709423836,3.58660578,84.57,84.529,36.61386103]
[1770709426238,3.58660578,84.57,84.531,36.61386103]
[1770709434035,3.58660578,84.57,84.533,35.39840654]
[1770709436150,3.58660578,84.56,84.533,35.39840654]
[1770709436843,37.85823578,84.57,84.533,35.39840654]
[1770709437947,37.85823578,84.57,84.535,35.39840654]
[1770709440356,34.27163,84.57,84.535,35.39840654]
[1770709440555,37.85823578,84.57,84.535,35.39840654]
[1770709441759,34.27163,84.57,84.535,35.39840654]
[1770709441947,37.85823578,84.57,84.535,35.39840654]
[1770709442355,37.85823578,84.57,84.536,46.05560654]
[1770709442653,37.85823578,84.57,84.537,35.39840654]
[1770709447659,34.27163,84.57,84.537,35.39840654]
[1770709447962,37.85823578,84.57,84.537,35.39840654]
[1770709454166,37.85823578,84.58,84.537,35.39840654]
[1770709456665,3.58660578,84.57,84.537,35.39840654]
[1770709460062,37.85823578,84.58,84.537,35.39840654]
[1770709460567,3.58660578,84.57,84.537,35.39840654]
[1770709460971,3.58660578,84.56,84.528,34.56364644]
[1770709461667,37.16724881,84.57,84.531,33.50204137]
[1770709462861,37.16724881,84.57,84.533,33.50204137]
[1770709463867,37.16724881,84.57,84.535,33.50204137]
[1770709465773,37.16724881,84.57,84.537,33.50204137]
[1770709466474,3.58660578,84.57,84.537,33.50204137]
[1770709469879,33.82570056,84.579,84.537,33.50204137]
[1770709473871,33.82570056,84.579,84.54,33.50204137]
[1770709478682,33.82570056,84.579,84.543,10.6562]
[1770709478981,33.82570056,84.579,84.544,33.50204137]
[1770709480584,3.58331901,84.57,84.544,33.50204137]
[1770709481176,33.82570056,84.579,84.544,33.50204137]
[1770709481376,3.58331901,84.57,84.544,33.50204137]
[1770709481577,33.82570056,84.579,84.544,33.50204137]
[1770709489280,33.82570056,84.569,84.521,33.50204137]
[1770709490790,33.82570056,84.569,84.524,32.35365268]
[1770709491685,33.82570056,84.569,84.53,32.35365268]
[1770709495394,34.3850168,84.559,84.53,32.35365268]
[1770709497695,3.5834916,84.56,84.53,32.35365268]
[1770709499888,10.6537,84.564,84.53,32.35365268]
[1770709500195,34.3850168,84.568,84.53,32.35365268]
[1770709502191,3.5834916,84.56,84.53,32.35365268]
[1770709503097,36.57959707,84.56,84.53,32.35365268]
[1770709503304,10.6529,84.57,84.494,34.96586188]
[1770709503305,3.5834916,84.54,84.494,34.96586188]
[1770709503797,3.5834916,84.54,84.496,34.96586188]
[1770709507199,32.99610547,84.549,84.501,34.96586188]
[1770709508794,32.99610547,84.549,84.506,34.96586188]
[1770709509502,36.57959707,84.54,84.506,34.96586188]
[1770709512509,10.6561,84.545,84.506,34.96586188]
[1770709512510,32.99610547,84.549,84.506,34.96586188]
[1770709513197,32.99610547,84.549,84.507,33.54643086]
[1770709514010,32.99610547,84.549,84.512,33.54643086]
[1770709517305,3.5834916,84.54,84.512,33.54643086]
[1770709520209,3.5834916,84.53,84.499,33.87217532]
[1770709520410,36.83149566,84.52,84.484,33.87217532]
[1770709522610,10.6595,84.518,84.484,33.87217532]
[1770709523319,36.83149566,84.52,84.484,33.87217532]
[1770709525608,44.1690572,84.528,84.484,33.87217532]
[1770709527320,3.5834916,84.52,84.484,33.87217532]
[1770709530924,3.58764363,84.52,84.484,33.87217532]
[1770709531724,3.58764363,84.51,84.484,33.87217532]
[1770709532026,37.72454958,84.51,84.465,31.21026876]
[1770709532222,3.58764363,84.5,84.465,31.21026876]
[1770709532920,3.58764363,84.49,84.465,31.21026876]
[1770709533225,3.58764363,84.49,84.43,3.58764363]
[1770709533226,3.58764363,84.49,84.431,33.37534158]
[1770709533722,3.58764363,84.49,84.43,3.58764363]
[1770709533723,3.58764363,84.49,84.445,33.37534158]
[1770709534721,124.22,84.525,84.445,33.37534158]
[1770709534722,3.58764363,84.48,84.445,33.37534158]
[1770709534922,3.58764363,84.47,84.445,33.37534158]
[1770709537522,37.92701949,84.48,84.445,33.37534158]
[1770709538634,3.58764363,84.48,84.445,33.37534158]
[1770709538837,10.6637,84.485,84.445,33.37534158]
[1770709539139,10.6623,84.496,84.447,33.37534158]
[1770709541131,45.00027586,84.507,84.456,33.37534158]
[1770709541433,3.58764363,84.5,84.456,33.37534158]
[1770709542032,3.58764363,84.51,84.466,33.37534158]
[1770709542233,10.6596,84.517,84.466,33.37534158]
[1770709542837,10.6596,84.517,84.471,33.37534158]
[1770709545034,3.58764363,84.51,84.471,33.37534158]
[1770709548343,3.58764363,84.51,84.473,33.37534158]
[1770709553144,10.6596,84.517,84.473,33.37534158]
[1770709553750,34.33937586,84.519,84.446,99.62]
[1770709553751,34.33937586,84.519,84.477,33.7023831]
[1770709556343,3.58764363,84.51,84.477,33.7023831]
[1770709556650,36.87518307,84.51,84.477,33.7023831]
[1770709558752,3.58764363,84.51,84.477,33.7023831]
[1770709560354,10.6613,84.504,84.477,33.7023831]
[1770709560552,3.58764363,84.51,84.477,33.7023831]
[1770709561449,3.58764363,84.52,84.477,33.7023831]
[1770709561754,36.87518307,84.52,84.477,33.7023831]
[1770709562856,43.94703944,84.518,84.477,33.7023831]
[1770709563052,36.87518307,84.51,84.477,33.7023831]
[1770709564357,10.6595,84.518,84.477,33.7023831]
[1770709564548,36.87518307,84.52,84.477,33.7023831]
[1770709565558,3.58764363,84.51,84.477,33.7023831]
[1770709566852,36.87518307,84.51,84.477,33.7023831]
[1770709571356,3.58764363,84.51,84.477,33.7023831]
[1770709572256,11.03486054,84.528,84.478,33.7023831]
[1770709572257,10.6584,84.527,84.478,33.7023831]
[1770709572764,3.58764363,84.52,84.478,33.7023831]
[1770709573159,3.58764363,84.52,84.481,33.7023831]
[1770709573464,14.24694363,84.52,84.481,33.7023831]
[1770709579561,14.24694363,84.52,84.47,3.58764363]
[1770709579562,10.658,84.53,84.484,33.7023831]
[1770709579769,14.24564363,84.53,84.484,33.7023831]
[1770709580768,14.24564363,84.53,84.486,31.02951062]
[1770709581062,3.58764363,84.54,84.491,31.02951062]
[1770709581255,14.6311687,84.572,84.491,31.02951062]
[1770709581256,31.14997505,84.529,84.491,31.02951062]
[1770709583967,3.58764363,84.53,84.491,31.02951062]
[1770709584165,35.02086251,84.54,84.492,33.4739578]
[1770709592869,35.01955304,84.54,84.492,33.4739578]
[1770709593266,35.01955304,84.54,84.494,33.4739578]
[1770709596773,10.657,84.538,84.494,33.4739578]
[1770709596977,42.09021888,84.538,84.494,33.4739578]
[1770709598774,42.09021888,84.538,84.497,33.4739578]
[1770709602483,42.09021888,84.538,84.496,10.6622]
[1770709602484,31.43321888,84.567,84.511,33.4739578]
[1770709602679,31.43321888,84.567,84.46,56.8635]
[1770709602680,31.43321888,84.567,84.521,33.4739578]
[1770709603088,31.43321888,84.579,84.521,33.4739578]
[1770709603488,31.43321888,84.579,84.53,3.58633416]
[1770709603691,10.6529,84.571,84.531,33.4739578]
[1770709606896,31.43321888,84.579,84.532,33.4739578]
[1770709607797,31.43321888,84.579,84.541,33.4739578]
[1770709607993,10.6517,84.58,84.541,33.4739578]
[1770709608389,42.08391888,84.588,84.541,33.4739578]
[1770709609392,10.6514,84.582,84.541,33.4739578]
[1770709612599,41.4427227,84.582,84.541,33.4739578]
[1770709612803,35.53,84.604,84.541,33.4739578]
[1770709612804,30.7913227,84.579,84.541,33.4739578]
[1770709613497,30.7913227,84.576,84.541,33.4739578]
[1770709618099,30.7913227,84.584,84.541,44.1304578]
[1770709618302,30.7913227,84.584,84.542,31.4926794]
[1770709620199,3.58269261,84.59,84.542,31.4926794]
[1770709620396,3.58269261,84.59,84.54,3.58269261]
[1770709620397,30.7913227,84.594,84.55,3.58269261]
[1770709620597,30.7913227,84.594,84.551,31.4926794]
[1770709620799,10.6489,84.602,84.561,31.4926794]
[1770709620996,10.6489,84.602,84.56,3.58269261]
[1770709620997,30.7913227,84.607,84.566,31.4926794]
[1770709621299,10.6477,84.612,84.566,31.4926794]
[1770709621804,10.6477,84.612,84.515,35.53]
[1770709621805,10.6455,84.629,84.581,31.4926794]
[1770709622607,34.37401531,84.63,84.583,31.4926794]
[1770709623901,30.7913227,84.63,84.583,31.4926794]
[1770709624900,34.37401531,84.63,84.583,31.4926794]
[1770709625408,10.6444,84.638,84.591,31.4926794]
[1770709625409,30.7913227,84.635,84.591,31.4926794]
[1770709626998,30.7913227,84.629,84.591,31.4926794]
[1770709630010,34.37401531,84.64,84.591,31.4926794]
[1770709631010,30.7913227,84.638,84.591,31.4926794]
[1770709632110,30.7913227,84.632,84.591,31.4926794]
[1770709632305,30.7913227,84.619,84.57,31.4926794]
[1770709633414,3.58269261,84.62,84.573,31.4926794]
[1770709633615,30.7913227,84.63,84.581,31.4926794]
[1770709634813,30.7913227,84.63,84.58,3.58269261]
[1770709634814,30.7913227,84.63,84.584,31.4926794]
[1770709637116,41.4369227,84.629,84.584,31.4926794]
[1770709637317,30.7913227,84.628,84.584,31.4926794]
[1770709640515,30.7913227,84.628,84.586,31.75525317]
[1770709641622,31.53936148,84.626,84.586,31.75525317]
[1770709645621,10.6462,84.624,84.586,31.75525317]
[1770709647726,31.53936148,84.626,84.586,31.75525317]
[1770709648926,10.6463,84.623,84.586,31.75525317]
[1770709649129,31.53936148,84.619,84.574,32.86377194]
[1770709649421,31.53936148,84.619,84.524,14.75992819]
[1770709649422,31.53936148,84.639,84.591,32.86377194]
[1770709650226,31.53936148,84.626,84.591,32.86377194]
[1770709651122,31.53936148,84.623,84.579,32.86377194]
[1770709652925,31.53936148,84.623,84.582,32.86377194]
[1770709656020,10.6464,84.622,84.582,32.86377194]
[1770709656225,42.18576148,84.622,84.582,32.86377194]
[1770709658833,42.18576148,84.622,84.58,3.5782732]
[1770709658834,31.53936148,84.621,84.584,32.86377194]
[1770709659435,31.53936148,84.632,84.584,32.86377194]
[1770709662032,31.53936148,84.628,84.584,32.86377194]
[1770709663136,31.53936148,84.628,84.58,194.4]
[1770709663137,31.53936148,84.65,84.62,3.5782732]
[1770709663436,31.53936148,84.65,84.612,32.86377194]
[1770709664038,31.53936148,84.65,84.62,3.5782732]
[1770709664541,31.53936148,84.65,84.612,32.86377194]
[1770709667539,31.53936148,84.65,84.581,14.75992819]
[1770709667540,31.53936148,84.629,84.587,32.86377194]
[1770709668137,22.01912312,84.679,84.567,14.75992819]
[1770709668138,3.5782732,84.67,84.621,32.86377194]
[1770709668336,3.5782732,84.67,84.61,3.5782732]
[1770709668337,3.5782732,84.65,84.6,3.5782732]
[1770709668537,3.5782732,84.64,84.596,32.86377194]
[1770709670642,3.09986663,84.644,84.596,32.86377194]
[1770709672641,6.19732005,84.639,84.596,32.86377194]
[1770709672840,6.19732005,84.639,84.589,10.6504]
[1770709673038,6.19732005,84.639,84.589,43.14648998]
[1770709673240,6.26029569,84.637,84.59,32.49608998]
[1770709673441,9.83856889,84.63,84.59,32.49608998]
[1770709675545,6.44602539,84.629,84.59,32.49608998]
[1770709675746,6.44602539,84.629,84.554,14.75992819]
[1770709675747,6.44602539,84.619,84.577,32.49608998]
[1770709678443,10.6458,84.627,84.577,32.49608998]
[1770709678642,6.10809369,84.631,84.581,43.14748998]
[1770709678836,6.10809369,84.631,84.582,32.49608998]
[1770709679238,3.5782732,84.63,84.582,32.49608998]
[1770709679850,3.5782732,84.63,84.585,32.49608998]
[1770709681653,10.03309264,84.63,84.585,32.49608998]
[1770709681849,6.39805522,84.619,84.572,32.49608998]
[1770709682053,165.5086,84.675,84.56,32.49608998]
[1770709682054,6.45397359,84.609,84.56,32.49608998]
[1770709682249,3.5782732,84.62,84.571,32.49608998]
[1770709683756,9.26557035,84.62,84.571,32.49608998]
[1770709684156,10.6472,84.616,84.571,32.49608998]
[1770709684852,16.38897663,84.616,84.571,32.49608998]
[1770709685554,9.37335064,84.61,84.571,32.49608998]
[1770709686259,5.79077542,84.609,84.571,32.49608998]
[1770709686959,10.6465,84.621,84.571,32.49608998]
[1770709687153,3.5782732,84.63,84.581,32.49608998]
[1770709688758,10.6455,84.629,84.581,32.49608998]
[1770709689156,35.49,84.653,84.581,32.49608998]
[1770709689357,5.85879616,84.651,84.601,32.49608998]
[1770709689559,5.85879616,84.649,84.601,32.49608998]
[1770709690757,10.6434,84.646,84.602,32.49608998]
[1770709694068,10.6443,84.639,84.602,32.49608998]
[1770709696079,3.5782732,84.64,84.602,32.49608998]
[1770709696573,10.6432,84.647,84.602,32.49608998]
[1770709698685,18.62048854,84.647,84.602,32.49608998]
[1770709698885,3.5782732,84.64,84.602,32.49608998]
[1770709704094,7.91093733,84.639,84.602,32.49608998]
[1770709706095,3.5782732,84.64,84.602,32.49608998]
[1770709709599,3.5782732,84.62,84.585,32.77899653]
[1770709710392,3.5782732,84.6,84.574,32.77899653]
[1770709710595,8.06289186,84.609,84.574,32.77899653]
[1770709711791,10.6482,84.608,84.574,32.77899653]
[1770709713100,3.5782732,84.6,84.574,32.77899653]
[1770709713593,10.6482,84.608,84.574,32.77899653]
[1770709715001,3.58079128,84.6,84.574,32.77899653]
[1770709718199,3.58079128,84.6,84.55,3.58079128]
[1770709718200,3.58079128,84.58,84.52,3.58079128]
[1770709718400,21.2915,84.627,84.52,3.58079128]
[1770709718401,3.58079128,84.57,84.52,3.58079128]
[1770709718602,3.58079128,84.56,84.51,3.58079128]
[1770709718800,35.49,84.617,84.49,3.58079128]
[1770709718801,3.58079128,84.55,84.49,3.58079128]
[1770709719303,3.58079128,84.54,84.491,10.6628]
[1770709720004,3.58079128,84.53,84.491,10.6628]
[1770709720196,3.58079128,84.53,84.492,32.77899653]
[1770709720997,3.58079128,84.54,84.492,32.77899653]
[1770709722299,10.656,84.546,84.49,3.58079128]
[1770709722300,10.656,84.546,84.494,32.77899653]
[1770709723303,25.30742787,84.559,84.501,32.77899653]
[1770709723501,3.58079128,84.57,84.511,32.77899653]
[1770709724000,94.36,84.597,84.513,32.77899653]
[1770709724001,3.58079128,84.56,84.513,32.77899653]
[1770709725009,3.58079128,84.56,84.515,32.77899653]
[1770709725402,3.58079128,84.55,84.515,32.77899653]
[1770709726409,3.58079128,84.54,84.515,32.77899653]
[1770709726703,3.58079128,84.54,84.504,10.6611]